Cogmind - Beta 15 @@@ ROGUE MODE // 2025.08.24 @ 15:42:35 Player: LightKnight Result: Self-destructed Performance ------------- Evolutions (2) 1000 Regions Visited (7) 1400 Robots Destroyed (70) 350 Value Destroyed (1743) 1743 Prototype IDs (11) 220 Alien Tech Used (0) 0 Bonus (226) 226 TOTAL SCORE: 4939 Bonus ------- High Alert Combat Kills 73 Follower Combat Kills 266 Friendly Fire -113 Cogmind --------- Core Integrity 515/550 Matter 3/300 Energy 280/280 System Corruption 0% Temperature Cool (9) Movement Walking (126) Location -8/Materials Parts ------- > --- POWER (1) -------- Heavy Ion Engine > --- PROPULSION (3) --- Improved Aluminum Leg Titanium Leg Titanium Leg > --- UTILITY (4) ------ Large Storage Unit Seismic Detector > --- WEAPON (3) ------- Light Assault Rifle Heavy Assault Rifle Rocket Launcher > --- INVENTORY (15) --- Light Ion Engine Titanium Leg Titanium Leg Wheel Heat Sink Small Matter Pod (0) Peak State ------------ > --- POWER ------------ Light Nuclear Core > --- PROPULSION ------- Carbon-fiber Leg Carbon-fiber Leg Carbon-fiber Leg > --- UTILITY ---------- Large Storage Unit Hardened Light Armor Plating > --- WEAPON ----------- Heavy Assault Rifle Heavy Assault Rifle Heavy Assault Rifle > --- INVENTORY -------- Light Nuclear Core Carbon-fiber Leg Titanium Leg Titanium Leg Titanium Leg Titanium Leg Heat Sink Hardened Light Armor Plating Hardened Light Armor Plating Shield Generator Assault Rifle Assault Rifle Light Assault Rifle Shotgun Rocket Launcher [Rating: 24] Favorites ----------- Power Light Ion Engine Engine Light Ion Engine Power Core Light Nuclear Core Propulsion Light Treads Treads Light Treads Leg Carbon-fiber Leg Utility Large Storage Unit Device Seismic Detector Storage Large Storage Unit Protection Hardened Light Armor Plating Weapon Heavy Assault Rifle Energy Gun EM Pulse Gun Ballistic Gun Heavy Assault Rifle Launcher Rocket Launcher Build | -11 -10 -10 -9 -9 -9 -8 -8 ------- Run | Yrd Mat Min Mat Min Exi Min Mat Slots Evolved 4 | . . . 2 . . . 2 Power . | . . . . . . . . Propulsion 1 | . . . 1 . . . . Utility 2 | . . . . . . . 2 Weapon 1 | . . . 1 . . . . Parts Attached 42 | . 13 . 14 1 12 2 . Power 4 | . 1 . 2 . 1 . . Engine 3 | . 1 . 1 . 1 . . Core 1 | . . . 1 . . . . Reactor . | . . . . . . . . Propulsion 10 | . 2 . 4 1 3 . . Treads 3 | . 2 . 1 . . . . Leg 7 | . . . 3 1 3 . . Wheel . | . . . . . . . . Hover . | . . . . . . . . Flight . | . . . . . . . . Utility 9 | . 3 . 1 . 4 1 . Device 4 | . 1 . . . 2 1 . Storage 1 | . 1 . . . . . . Processor . | . . . . . . . . Hackware . | . . . . . . . . Protection 4 | . 1 . 1 . 2 . . Artifact . | . . . . . . . . Weapon 19 | . 7 . 7 . 4 1 . Energy Gun 5 | . 5 . . . . . . Energy Cannon . | . . . . . . . . Ballistic Gun 13 | . 2 . 7 . 3 1 . Ballistic Cannon . | . . . . . . . . Launcher 1 | . . . . . 1 . . Special Weapon . | . . . . . . . . Impact Weapon . | . . . . . . . . Slashing Weapon . | . . . . . . . . Piercing Weapon . | . . . . . . . . Special Melee Weapon . | . . . . . . . . Unidentified Prototypes . | . . . . . . . . Parts Lost 19 | . 4 . 1 . 14 . . Power 3 | . 1 . 1 . 1 . . Propulsion 3 | . . . . . 3 . . Utility 4 | . . . . . 4 . . Weapon 9 | . 3 . . . 6 . . Highest Loss Streak 6 | . 2 . 1 . 6 . . To Critical Strikes 8 | . . . . . 8 . . Average Backups 12 | . 11 15 14 15 6 6 7 Power . | . . . . 1 . . 1 Propulsion 4 | . 4 4 4 5 1 2 3 Utility 3 | . 2 4 4 4 1 1 2 Weapon 4 | . 3 6 5 5 2 1 1 Tool/Special . | . . . . . . . . Unused Backups 25 | . 2 . 16 . 2 . 5 Power 2 | . . . 1 . . . 1 Propulsion 9 | . . . 6 . . . 3 Utility 7 | . . . 4 . 2 . 1 Weapon 7 | . 2 . 5 . . . . Tool/Special . | . . . . . . . . Average Slot Usage (%) 95 | . 97 100 98 99 86 79 75 Engine 10 | . 13 14 8 11 8 11 9 Treads 14 | . 25 28 14 . . . . Leg 16 | . 2 . 16 32 30 33 27 Device 3 | . 10 . . . 5 11 9 Storage 11 | . 14 14 11 11 4 11 9 Protection 8 | . 1 14 11 11 9 . . Energy Gun 4 | . 24 . . . . . . Ballistic Gun 24 | . 3 28 32 33 26 13 18 Peak Build Rating 24 | . 11 11 24 24 23 17 19 Average Rating 15 | . 8 11 18 23 18 16 17 On Entrance 14 | 6 6 11 11 24 23 15 17 Naked Turns . | . . . . . . . . Heaviest Build 42 | 13 36 36 42 42 42 33 33 Greatest Support 60 | 20 40 40 60 45 47 47 47 Greatest Overweight (x) 2 | . . . 2 1 . . . Average Overweight (x) . | . . . . . . . . Largest Inventory Capacity 15 | . 15 15 15 15 15 15 15 Average Capacity 14 | . 14 15 15 15 8 15 15 Most Carried 15 | . 15 15 15 15 15 7 7 Average Carried 12 | . 11 14 14 15 6 6 6 Final Capacity 15 | 8 15 15 15 15 15 15 15 Final Carried 15 | 6 15 15 15 15 4 7 6 Class Distribution -------------------- 41% | Mutant 37% | Tank 19% | Scavenger-Tank Dominant Class ---------------- Mutant | -10/Materials Mutant | -10/Mines Tank | -9/Materials Scavenger-Tank | -9/Mines Scavenger-Tank | -9/Exiles Mutant | -8/Mines Scavenger-Mutant | -8/Materials Resources | -11 -10 -10 -9 -9 -9 -8 -8 ----------- Run | Yrd Mat Min Mat Min Exi Min Mat Matter Collected 1529 | 200 169 60 700 119 190 91 . Remotely . | . . . . . . . . Salvage Created 2594 | . 839 41 1419 152 52 91 . Parts 159 | . 51 9 85 6 . 8 . Haulers Intercepted 7 | . 2 . 5 . . . . Recyclers Shooed . | . . . . . . . . Parts Field Recycled . | . . . . . . . . Retrieved Matter . | . . . . . . . . Parts Self-Destructed . | . . . . . . . . Prevented . | . . . . . . . . Kills | -11 -10 -10 -9 -9 -9 -8 -8 ------- Run | Yrd Mat Min Mat Min Exi Min Mat Combat Hostiles Destroyed 59 | . 16 4 24 6 7 2 . Melee 1 | . . . . . 1 . . Guns 51 | . 14 4 24 6 1 2 . AOE 7 | . 2 . . . 5 . . Classes Destroyed 9 | . 5 . 2 . 1 1 . Builder 4 | . 2 1 1 . . . . Tunneler 2 | . . . . . . 2 . Hauler 7 | . 2 . 5 . . . . Watcher 3 | . 2 . 1 . . . . Swarmer 13 | . 3 4 . 4 . 2 . Grunt 29 | . 13 . 15 1 . . . Duelist 4 | . . . 3 1 . . . Sentry 6 | . . . 6 . . . . Assembled 6 | . . . . . 6 . . Thug 1 | . . . 1 . . . . Best Kill Streak 7 | . 6 3 7 4 5 1 . Combat Bots Only 7 | . 5 3 7 4 5 1 . Max Kills in Single Turn 2 | . 2 2 2 1 2 1 . Gunslinging 1 | . . 1 . . . . . Exploded 2 | . 1 . . . 2 . . Melee 1 | . . . . . 1 . . Uniques/NPCs Destroyed 1 | . . . . . 1 . . 8R-AWN (-9/Exiles) Combat | -11 -10 -10 -9 -9 -9 -8 -8 -------- Run | Yrd Mat Min Mat Min Exi Min Mat Hostile Shots Fired 314 | . 70 7 64 13 133 16 11 Missed 77 | . 18 2 18 4 25 6 4 Hits 237 | . 52 5 46 9 108 10 7 Melee 8 | . . . 2 3 3 . . Projectile 229 | . 52 5 44 6 105 10 7 Critical Strikes 55 | . 2 . 2 1 50 . . Damage Taken 3404 | . 664 36 650 154 1688 75 137 Core 534 | . 136 . 117 . 229 17 35 Absorbed by Shields 182 | . . . . . 182 . . Regen/Repaired (Parts) 251 | . . . 251 . . . . Core Remaining (%) 51 | 100 . 45 . . . 9 . Volleys Fired 217 | . 60 4 65 11 57 16 4 Largest 3 | . 2 2 3 3 3 1 2 Hottest 80 | . 80 46 69 69 66 23 43 Shots Fired 470 | . 101 8 171 33 134 16 7 Gun 461 | . 101 8 171 33 126 16 6 Cannon . | . . . . . . . . Launcher 9 | . . . . . 8 . 1 Special . | . . . . . . . . Kinetic 360 | . . 8 171 33 126 16 6 Thermal 26 | . 26 . . . . . . Explosive 9 | . . . . . 8 . 1 Electromagnetic 75 | . 75 . . . . . . Robot Hit Streak 18 | . 15 1 9 6 18 15 3 Robot Miss Streak 6 | . 3 4 6 6 4 3 2 Penetration Max . | . . . . . . . . Secondary Targets 10 | . 4 2 4 . . . . Max Gunslinging Chain 1 | . 1 1 1 . . . . Shots Hit Robots 303 | . 71 5 106 12 96 9 4 Core Hits 137 | . 33 4 59 7 27 4 3 Critical Kills . | . . . . . . . . Critical Parts Destroyed 3 | . . . 3 . . . . Critical Strikes 3 | . . . 3 . . . . Destroy 3 | . . . 3 . . . . Melee Attacks . | . . . . . . . . Impact . | . . . . . . . . Slashing . | . . . . . . . . Piercing . | . . . . . . . . Sneak Attacks . | . . . . . . . . Combat Hostiles . | . . . . . . . . Follow-up Attacks . | . . . . . . . . Damage Inflicted 5189 | . 1272 97 1684 223 1717 146 50 Guns 4437 | . 1038 58 1653 213 1279 146 50 Cannons . | . . . . . . . . Explosions 626 | . 232 . . . 394 . . Melee . | . . . . . . . . Ramming 126 | . 2 39 31 10 44 . . Kinetic 3399 | . . 58 1653 213 1279 146 50 Thermal 457 | . 457 . . . . . . Explosive 394 | . . . . . 394 . . Electromagnetic 813 | . 813 . . . . . . Impact . | . . . . . . . . Slashing . | . . . . . . . . Piercing . | . . . . . . . . Highest Corruption 2 | . 2 2 . . . . . Average Corruption 2 | . 2 2 . . . . . Corruption Purged . | . . . . . . . . Corruption Blocked . | . . . . . . . . Effects 20 | . 12 8 . . . . . Message Errors 2 | . 2 . . . . . . Matter Fused 7 | . 7 . . . . . . Heat Flow Errors 6 | . 2 4 . . . . . Energy Discharges 1 | . . 1 . . . . . Data Loss (minor) 2 | . . 2 . . . . . Data Loss (major) 1 | . . 1 . . . . . Misfires 1 | . 1 . . . . . . Overload Shots . | . . . . . . . . Overflow Damage 9 | . 6 . . . 3 . . Projectiles . | . . . . . . . . Explosions 9 | . 6 . . . 3 . . Melee . | . . . . . . . . Knockbacks 1 | . . . 1 . . . . Impact 1 | . . . 1 . . . . Kinetic . | . . . . . . . . Secondary . | . . . . . . . . Self-Inflicted Damage 123 | . 67 . . . 47 . 9 Shots 5 | . 3 . . . 1 . 1 Rammed 8 | . 2 4 2 . . . . Targets Rammed 46 | . 2 5 11 3 25 . . Kicked 37 | . . . 9 3 25 . . Crushed 1 | . . 1 . . . . . Highest Temperature 282 | . 282 247 139 48 96 . 9 Average Temperature 49 | . 63 99 30 20 52 . 5 Received Heat Transfer 624 | . 258 . 285 18 . . 63 Siege Activations . | . . . . . . . . Martial Activations . | . . . . . . . . Shielding Activations . | . . . . . . . . Robots Disrupted . | . . . . . . . . Combat Hostiles . | . . . . . . . . Robots Corrupted . | . . . . . . . . Combat Hostiles . | . . . . . . . . Parts Fried . | . . . . . . . . Impact Corruptions 1 | . . . . . 1 . . Robots Melted . | . . . . . . . . Combat Hostiles . | . . . . . . . . Parts Melted . | . . . . . . . . Heat Transferred 850 | . 850 . . . . . . Parts Sabotaged . | . . . . . . . . Parts Stolen . | . . . . . . . . Parts Stripped . | . . . . . . . . Power Chain Reactions 5 | . 5 . . . . . . Alert | -11 -10 -10 -9 -9 -9 -8 -8 ------- Run | Yrd Mat Min Mat Min Exi Min Mat Maximum Alert Level 2 | . 1 . 2 1 . . . Low Security (%) 68 | . 72 100 53 53 . 100 100 Level 1 24 | . 27 . 27 46 . . . Level 2 7 | . . . 18 . . . . Level 3 . | . . . . . . . . Level 4 . | . . . . . . . . Level 5 . | . . . . . . . . High Security . | . . . . . . . . Max Security . | . . . . . . . . Peak Influence 535 | . 303 160 535 280 . 55 9 Initial 205 | . . 90 . 205 . . 9 Average 131 | . 92 36 188 195 . 12 8 Influence Increases 2064 | . 590 105 1089 200 . 75 5 Destroy 0b10 Robot/C 1240 | . 320 80 680 120 . 40 . Destroy 0b10 Robot/NC 95 | . 30 5 50 . . 10 . Destroy Leader 336 | . 88 20 198 20 . 10 . Allied During Kill 75 | . . . 75 . . . . Successful Hack 49 | . 28 . 21 . . . . Select Force Hacks 120 | . 60 . 60 . . . . Disable Machine 30 | . 15 . . 15 . . . Destroy Structure 29 | . 19 . 5 . . . 5 Lose Combat Pursuer 90 | . 30 . . 45 . 15 . Influence Decreases 2060 | . 359 336 560 634 95 50 26 Entered New Map 576 | . . 141 . 324 95 . 16 Time Decay 1247 | . 322 195 360 310 . 50 10 Lost Part 47 | . 37 . 10 . . . . Lost Ally 40 | . . . 40 . . . . Purge Threat 150 | . . . 150 . . . . Squads Dispatched 10 | . 5 . 5 . . . . Investigation 7 | . 3 . 4 . . . . Extermination . | . . . . . . . . Reinforcement 3 | . 2 . 1 . . . . Assault . | . . . . . . . . Garrison . | . . . . . . . . Intercept . | . . . . . . . . Searches Triggered . | . . . . . . . . Construction Impeded . | . . . . . . . . Haulers Reinforced . | . . . . . . . . Active Scanning Responses . | . . . . . . . . Cargo Convoy Interrupts . | . . . . . . . . Stealth | -11 -10 -10 -9 -9 -9 -8 -8 --------- Run | Yrd Mat Min Mat Min Exi Min Mat Distress Signals 6 | . 1 . 3 1 . . 1 Communications Jammed . | . . . . . . . . Distress Signals . | . . . . . . . . Times Spotted 93 | . 26 4 40 8 8 3 4 Peak Tracking Total 9 | . 4 2 6 4 9 3 4 Tactical Retreats 5 | . 1 . . 2 1 1 . Traps | -11 -10 -10 -9 -9 -9 -8 -8 ------- Run | Yrd Mat Min Mat Min Exi Min Mat Traps Triggered 4 | . 2 . 2 . . . . Indirectly . | . . . . . . . . Trap Hack Attempts . | . . . . . . . . Triggered . | . . . . . . . . Disarmed . | . . . . . . . . Reprogrammed . | . . . . . . . . Reused . | . . . . . . . . Traps Extracted . | . . . . . . . . Installed . | . . . . . . . . Triggered . | . . . . . . . . Machines | -11 -10 -10 -9 -9 -9 -8 -8 ---------- Run | Yrd Mat Min Mat Min Exi Min Mat Machines Disabled 7 | . 1 . . 1 5 . . Max in Single Turn 1 | . 1 . . 1 1 . . Machines Repaired . | . . . . . . . . Machines Dismantled . | . . . . . . . . Machines Sabotaged . | . . . . . . . . Overloaded Fab Kills . | . . . . . . . . Hacking | -11 -10 -10 -9 -9 -9 -8 -8 --------- Run | Yrd Mat Min Mat Min Exi Min Mat Machines Accessed 23 | . 7 . 15 . 1 . . Terminals 16 | . 5 . 11 . . . . Fabricators . | . . . . . . . . Repair Stations 2 | . . . 2 . . . . Recycling Units 4 | . 2 . 2 . . . . Scanalyzers . | . . . . . . . . Garrison Access . | . . . . . . . . Total Hacks 63 | . 19 . 43 . 1 . . Successful 35 | . 11 . 23 . 1 . . Failed 27 | . 8 . 19 . . . . Catastrophic 1 | . . . 1 . . . . Database Lockouts 1 | . . . 1 . . . . Manual 40 | . 15 . 25 . . . . Terminals 51 | . 17 . 34 . . . . Fabricators . | . . . . . . . . Repair Stations 7 | . . . 7 . . . . Recycling Units 4 | . 2 . 2 . . . . Scanalyzers . | . . . . . . . . Garrison Access . | . . . . . . . . Terminal Hacks 16 | . 4 . 11 . 1 . . Record 1 | . . . . . 1 . . Robot Analysis 4 | . 1 . 3 . . . . Prototype ID Bank 7 | . 2 . 5 . . . . Unreport Threat 1 | . . . 1 . . . . Locate Traps 3 | . 1 . 2 . . . . Fabricator Hacks . | . . . . . . . . Repair Station Hacks 6 | . . . 6 . . . . Scan Component 3 | . . . 3 . . . . Repair 3 | . . . 3 . . . . Recycling Unit Hacks . | . . . . . . . . Scanalyzer . | . . . . . . . . Garrison Access Hacks . | . . . . . . . . Unauthorized Hacks 13 | . 7 . 6 . . . . Terminals 9 | . 5 . 4 . . . . Assimilate 1 | . . . 1 . . . . Botnet 7 | . 4 . 3 . . . . Skim 1 | . 1 . . . . . . Fabricators . | . . . . . . . . Repair Stations . | . . . . . . . . Recycling Units 4 | . 2 . 2 . . . . Tunnel 4 | . 2 . 2 . . . . Scanalyzers . | . . . . . . . . Garrison Access . | . . . . . . . . Data Cores Recovered . | . . . . . . . . Used . | . . . . . . . . Hacking Detections 15 | . 5 . 10 . . . . Full Trace Events . | . . . . . . . . Feedback Events . | . . . . . . . . Feedback Blocked . | . . . . . . . . Robot Schematics Acquired . | . . . . . . . . Robots Built . | . . . . . . . . Authchips . | . . . . . . . . Time . | . . . . . . . . Total Robot Build Rating . | . . . . . . . . Part Schematics Acquired . | . . . . . . . . Parts Built . | . . . . . . . . Authchips . | . . . . . . . . Time . | . . . . . . . . Total Part Build Rating . | . . . . . . . . Parts Repaired 3 | . . . 3 . . . . Time 78 | . . . 78 . . . . Parts Recycled . | . . . . . . . . Recycled Matter . | . . . . . . . . Retrieved Matter . | . . . . . . . . Retrieved Components . | . . . . . . . . Parts Scanalyzed . | . . . . . . . . Part Schematics Acquired . | . . . . . . . . Parts Damaged . | . . . . . . . . Bothacking | -11 -10 -10 -9 -9 -9 -8 -8 ------------ Run | Yrd Mat Min Mat Min Exi Min Mat Used RIF Installer . | . . . . . . . . Robots Hacked . | . . . . . . . . Non-combat . | . . . . . . . . Combat . | . . . . . . . . Robot Hacks Applied . | . . . . . . . . Relay Couplers Released . | . . . . . . . . Fabnet Peak Effective % . | . . . . . . . . Robots Rewired . | . . . . . . . . Allies Hacked . | . . . . . . . . Hacks Repelled . | . . . . . . . . Allies | -11 -10 -10 -9 -9 -9 -8 -8 -------- Run | Yrd Mat Min Mat Min Exi Min Mat Total Allies 6 | . . 6 . . . . . Largest Group 5 | . . 5 5 . . . . Highest-Rated Group 90 | . . 90 90 . . . . Highest-Rated Ally 31 | . . 31 31 . . . . Total Orders . | . . . . . . . . Ally Attacks 55 | . . . 55 . . . . Total Damage 710 | . . . 710 . . . . Kills 14 | . . . 14 . . . . Allies Corrupted . | . . . . . . . . Allies Melted . | . . . . . . . . Intel | -11 -10 -10 -9 -9 -9 -8 -8 ------- Run | Yrd Mat Min Mat Min Exi Min Mat Active Infowar (turns) 951 | . 808 . . . . 122 21 Seismic 951 | . 808 . . . . 122 21 Robot Analysis Total 4 | . 1 . 3 . . . . Derelict Logs Recovered 4 | . . 2 . 2 . . . Drone Launches . | . . . . . . . . Drone Recoveries . | . . . . . . . . Exploration | -11 -10 -10 -9 -9 -9 -8 -8 ------------- Run | Yrd Mat Min Mat Min Exi Min Mat Turns Passed 5321 | . 1086 753 1755 689 788 229 21 Spaces Moved 3150 | 1 564 458 1007 538 424 151 7 Core . | . . . . . . . . Treads 1403 | . 519 458 426 . . . . Legs 1747 | 1 45 . 581 538 424 151 7 Wheels . | . . . . . . . . Hover . | . . . . . . . . Flight . | . . . . . . . . Fastest Speed 120 | 120 120 160 120 120 120 126 126 Average Speed 138 | 120 156 160 137 120 121 126 126 Slowest Speed 260 | 120 160 160 260 190 126 126 126 Overloaded Moves . | . . . . . . . . Propulsion Burnouts . | . . . . . . . . Robots Hopped . | . . . . . . . . Potential Cave-ins . | . . . . . . . . Cave-ins Triggered . | . . . . . . . . Exploration Rate (%) 59 | 2 94 98 96 97 58 30 3 Regions Visited 7 Branch Regions 4 Pre-discovered Areas 6 | . 2 . 2 1 1 . . Known Exits Taken . | . . . . . . . . Unknown Exits Taken 7 | 1 1 1 1 1 1 1 . Scrap Searched 3 | . . 2 . 1 . . . Spaces Dug . | . . . . . . . . Terrain Destroyed 53 | . 18 . . . 30 . 5 Melee . | . . . . . . . . Projectile . | . . . . . . . . AOE 53 | . 18 . . . 30 . 5 Terrain Rammed . | . . . . . . . . Walls Destroyed . | . . . . . . . . Machines Disabled . | . . . . . . . . Actions | -11 -10 -10 -9 -9 -9 -8 -8 --------- Run | Yrd Mat Min Mat Min Exi Min Mat Total 3712 | . 665 468 1254 554 586 173 12 Wait 154 | . 3 . 101 . 48 2 . Move 3143 | . 563 457 1006 537 423 150 7 Hop . | . . . . . . . . Pick Up 46 | . 11 1 23 . 9 2 . Fast Attach 28 | . 6 . 10 2 8 2 . Attach 16 | . 6 . 2 . 7 . 1 Detach 9 | . 7 . . . 1 1 . Swap 11 | . 4 . 6 . 1 . . Drop 42 | . 3 1 30 1 7 . . Fire 217 | . 60 4 65 11 57 16 4 Melee . | . . . . . . . . Ram . | . . . . . . . . Kick 37 | . . . 9 3 25 . . Crush 9 | . 2 5 2 . . . . Escape Stasis . | . . . . . . . . Rewire . | . . . . . . . . Trap . | . . . . . . . . Miscellaneous . | . . . . . . . . Route ------- -11/Scrapyard -10/Materials (discovered 5 exits: *Mat x3 / [*Min] / [*Sub]) -10/Mines (discovered 2 exits: *Mat x2) -9/Materials (discovered 7 exits: [*Mat x3] / [*Min x2] / *Sto x2) -9/Mines (discovered 4 exits: [*Mat x2] / *Exi / [*Zio]) -9/Exiles -8/Mines -8/Materials History --------- Turn | Location | Event 1 | -11/Scrapyard | Discovered new exit (range 0) 1 | -11/Scrapyard | Entered Materials 112 | -10/Materials | Discovered new exit (range 10) 322 | -10/Materials | Build established: Mutant 350 | -10/Materials | Discovered new exit (range 11) 420 | -10/Materials | Discovered new exit (range 14) 559 | -10/Materials | Discovered new exit (range 7) 844 | -10/Materials | Core integrity fell below 50% 871 | -10/Materials | Discovered new exit (range 13) 1087 | -10/Materials | Entered Mines 1130 | -10/Mines | Received a Mining Laser from a helpful Derelict 1165 | -10/Mines | Met a Derelict bent on vengeance 1185 | -10/Mines | Learned Materials stockpile data 1212 | -10/Mines | Discovered new exit (range 13) 1415 | -10/Mines | Discovered new exit (range 4) 1613 | -10/Mines | Learned 2 Materials zone layouts 1826 | -10/Mines | Assisted by bots powering up and referring to "LRC-V3" 1840 | -10/Mines | Entered Materials 1840 | -9/Materials | Accompanied by 5 allies 1840 | -9/Materials | Evolved 2 slots: Propulsion x1, Weapon x1 1841 | -9/Materials | Identified exit to Storage 1845 | -9/Materials | Led the pair of lost Derelicts to an unsafe place 2041 | -9/Materials | Repaired Lgt. Treads 2069 | -9/Materials | Repaired Lgt. Treads 2106 | -9/Materials | Discovered exit to Storage (range 7) 2128 | -9/Materials | Build established: Tank 2136 | -9/Materials | Discovered new exit (range 15) 2510 | -9/Materials | Discovered new exit (range 5) 2602 | -9/Materials | Repaired Lgt. Treads 2769 | -9/Materials | Discovered new exit (range 14) 2815 | -9/Materials | Destroyed 7 combat bots 2958 | -9/Materials | Discovered new exit (range 10) 3154 | -9/Materials | Discovered new exit (range 10) 3578 | -9/Materials | Central database locked down 3595 | -9/Materials | Entered Mines 3701 | -9/Mines | Discovered new exit (range 8) 3770 | -9/Mines | Deemed a non-threat by the Exiles lab entrance 3770 | -9/Mines | Discovered new exit (range 5) 3896 | -9/Mines | A Derelict revealed a hidden shortcut to a safe place 3899 | -9/Mines | Discovered new exit (range 11) 4045 | -9/Mines | Learned Materials security intel 4142 | -9/Mines | Build established: Scavenger-Tank 4284 | -9/Mines | Entered Exiles 4314 | -9/Exiles | Met 8R-AWN 4334 | -9/Exiles | Met EX-HEX 4428 | -9/Exiles | Met EX-DEC 4461 | -9/Exiles | Learned location of Zion (-7) 4658 | -9/Exiles | Attacked by the Exiles 4777 | -9/Exiles | Core integrity fell below 50% 4819 | -9/Exiles | Lost 6 parts (1p1n2u2w) 4908 | -9/Exiles | Core integrity fell below 20% 4927 | -9/Exiles | Destroyed 8R-AWN 4950 | -9/Exiles | Lost 6 parts (1n2u3w) 5058 | -9/Exiles | Discovered new exit (range 14) 5072 | -9/Exiles | Entered Mines 5200 | -8/Mines | Build established: Mutant 5282 | -8/Mines | Discovered new exit (range 5) 5301 | -8/Mines | Entered Materials 5301 | -8/Materials | Evolved 2 slots: Utility x2 5322 | -8/Materials | Self-destructed Last Messages --------------- GOAL=ESCAPE 05078_ T-07 Excavator is excavating. 05093_ T-07 Excavator destroyed. 05099_ Acquired 28 matter. 05104_ Acquired Wheel. 05107_ Acquired Lgt. Ion Engine. 05131_ T-07 Excavator is excavating. 05167_ T-07 Excavator destroyed. 05169_ Acquired 30 matter. 05179_ Acquired Seismic Detector. 05227_ S-10 Pest destroyed. 05253_ Acquired 19 matter. 05254_ Acquired 14 matter. 05258_ Acquired Lgt. Assault Rifle. 05282_ EXIT=FOUND PARAMETERS=UTILITY+2 LOCATION=UNKNOWN GOAL=ESCAPE Loading Materials security intel (x10)... 05307_ W-25 Informer sends out distress signal. Map ----- +----------------------------------------------------+ | ????????????????????????????????????????? | | ????????????????????????????????????????? | | ????????????????????????????????????????? | | ????????????????????????????????????????? | | ????????????????????????????????????????? | | ????????????????????????????????????????? | | ????????????????????????????????????????? | | ????????????????????????????????????????? | | ????????????????????????????????????????? | | ???????????? ???????????????????????????? | | ???????????? ######?????????????????????? | | ???????????? ??????????????????? | | ???????????? #????????????????? | | ???????????? #????????????????? | | ???????????? #????????????????? | | ????????????# !!!#????????????????? | | ????????????# !!!#????????????????? | | ????????????# !! #????????????????? | | ????????????# #????????????????? | | ????????????# #????????????????? | | ????????????# #????????????????? | | ????????????# !!= #????????????????? | | ???????###### !== ##+#####?????????? | | ???????# != g w????????? | | ???????# g ????????? | | ???????# @ g ????????? | | ???????######## ### #??????????? | | ??????????????# ##????????????????? | | ??????????????#! ! #?????????????????? | | ??????????????##!!!! ##?????????????????? | | ???????????????#######??????????????????? | | ????????????????????????????????????????? | | ????????????????????????????????????????? | | ????????????????????????????????????????? | | ????????????????????????????????????????? | | ????????????????????????????????????????? | | ????????????????????????????????????????? | | ????????????????????????????????????????? | | ????????????????????????????????????????? | | ????????????????????????????????????????? | | ????????????????????????????????????????? | | ????????????????????????????????????????? | | ????????????????????????????????????????? | | ????????????????????????????????????????? | | ????????????????????????????????????????? | | ????????????????????????????????????????? | | ????????????????????????????????????????? | | ????????????????????????????????????????? | | ????????????????????????????????????????? | | ????????????????????????????????????????? | +----------------------------------------------------+ Best States ------------- Heat Dissipation 38 Energy Generation 14 Energy Capacity 280 Matter Stores 300 Matter Capacity 300 Sight Range 16 Terrain Scan Density 10 Armor Coverage 300 Evasion (%) 55 Recoil Reduction 3 Item Schematics ----------------- None Robot Schematics ------------------ None Fabricated ------------ Nothing Repaired ---------- Lgt. Treads | 20% | -9/Materials Lgt. Treads | 29% | -9/Materials Lgt. Treads | 71% | -9/Materials Alien Tech Used ----------------- None Achievements -------------- None Challenges ------------ None Game ------ Seed RainbowTransmissionMeganuke Manual? 0 Play Time 00:29:20 Cumulative 429.0 hours Start 2025.08.24 @ 13:43:50 End 2025.08.24 @ 15:42:35 Sessions 3 Manual Loads 0 Difficulty Rogue Special Mode None Game No. 280 Rogue 280 Adventurer 0 Explorer 0 Win Type - Total 28 Types 22/0/4/2/0/0/0/0/0/0 Lore% 91 Gallery% 83 Achievement% 70 Wizard Run 0 Options --------- Layout 0 ASCII 1 Keyboard 1 Movement Arrows Keybinds 0 Fullscreen 2 Font 18/Terminus Map View 76x50 Zoom Use 0% Tactical HUD 1 Map Filters NONE Filters NONE Steam 1 RUN: e7a257d5-f6a5-4705-a37d-c2af579d7ffc